fUSD/lending_fUSD_20241024
["ID","MTS","AMOUNT","RATE_DAILY","PERIOD"]
[340745357,1729771832299,-244.0,0.0006,120]
[340745358,1729771832308,-244.0,0.0006,120]
[340745359,1729771832317,-244.0,0.0006,120]
[340745360,1729771832326,-246.75050589,0.0006,120]
[340745361,1729771832336,-150.0,0.0006,120]
[340745363,1729771832345,-150.0,0.0006,120]
[340745365,1729771832357,-150.0,0.000601,120]
[340745367,1729771832367,-259.47,0.0006018,30]
[340745370,1729771832379,-250.0,0.00060195,120]
[340745372,1729771832389,-3510.7,0.00060195,2]
[340745374,1729771832399,-204.11,0.00060195,2]
[340745376,1729771832411,-299.99,0.00060195,120]
[340745378,1729771832420,-554.95,0.00060217,10]
[340745380,1729771832430,-23900.0,0.00060227,2]
[340745382,1729771832439,-500.0,0.00060273,120]
[340745384,1729771832448,-500.0,0.00060273,120]
[340745386,1729771832457,-500.0,0.00060273,120]
[340745388,1729771832466,-500.0,0.00060273,120]
[340745390,1729771832475,-1294.82,0.00060273,120]
[340745392,1729771832485,-500.0,0.00060273,120]
[340745394,1729771832494,-500.0,0.00060273,120]
[340745396,1729771832503,-500.0,0.00060273,120]
[340745397,1729771832512,-500.0,0.00060273,120]
[340745398,1729771832521,-505.73501864,0.00060273,120]
[340745399,1729771832530,-500.0,0.00060273,120]
[340745400,1729771832539,-500.0,0.00060273,120]
[340745401,1729771832548,-500.0,0.00060273,120]
[340745402,1729771832557,-523.25,0.00060273,120]
[340745403,1729771832566,-250.0,0.00060278,120]
[340745404,1729771832594,-168.01,0.00060299,120]
[340745405,1729771832603,-290.34,0.0006036,2]
[340745406,1729771832613,-1562.56,0.00060453,2]
[340745407,1729771832622,-500.0,0.000605,120]
[340745408,1729771832632,-226.06,0.00060537,30]
[340745409,1729771832641,-188.39,0.00060537,30]
[340745410,1729771832651,-156.99,0.00060537,30]
[340745411,1729771832660,-524.88924552,0.00060547,120]
[340745412,1729771832669,-500.0,0.00060547,120]
[340745413,1729771832678,-500.0,0.00060547,120]
[340745414,1729771832687,-526.17830161,0.00060547,120]
[340745415,1729771832697,-516.99335626,0.00060547,120]
[340745416,1729771832706,-510.10462909,0.00060547,120]
[340745417,1729771832716,-500.0,0.00060547,120]
[340745418,1729771832726,-521.87901698,0.00060547,120]
[340745419,1729771832737,-1294.82,0.00060547,120]
[340745420,1729771832747,-500.0,0.00060547,120]
[340745421,1729771832757,-500.0,0.00060547,120]
[340745422,1729771832766,-500.0,0.00060547,120]
[340745423,1729771832776,-500.0,0.00060547,120]
[340745424,1729771832785,-500.0,0.00060547,120]
[340745425,1729771832795,-548.02495074,0.00060547,120]
[340745426,1729771832804,-523.25,0.00060547,120]
[340745427,1729771832814,-784.97,0.00060603,30]
[340745428,1729771832824,-176.12,0.00060613,120]
[340745429,1729771832833,-155.73,0.00060637,2]
[340745430,1729771832843,-529.41632225,0.00060821,120]
[340745431,1729771832852,-161.39362174,0.00060821,120]
[340745432,1729771832861,-500.0,0.00060821,120]
[340745433,1729771832871,-1294.82,0.00060821,120]
[340745434,1729771832880,-524.17496985,0.00060821,120]
[340745435,1729771832890,-500.0,0.00060821,120]
[340745436,1729771832899,-500.0,0.00060821,120]
[340745437,1729771832908,-442.98,0.00060821,120]
[340745438,1729771832922,-500.0,0.00060821,120]
[340745439,1729771832931,-523.25,0.00060821,120]
[340745440,1729771832941,-800.0,0.00060994,120]
[340745441,1729771832951,-500.0,0.00061,120]
[340745442,1729771832963,-383.04,0.00061059,2]
[340745443,1729771832972,-500.0,0.00061095,120]
[340745444,1729771832983,-1294.82,0.00061095,120]
[340745445,1729771832994,-500.0,0.00061095,120]
[340745446,1729771833004,-500.0,0.00061095,120]
[340745447,1729771833013,-500.0,0.00061095,120]
[340745448,1729771833022,-523.25,0.00061095,120]
[340745449,1729771833032,-200.0,0.00061169,120]
[340745450,1729771833042,-250.0,0.00061169,120]
[340745451,1729771833052,-361.2662,0.00061269,2]
[340745452,1729771833061,-505.4624309,0.00061369,120]
[340745453,1729771833070,-1294.82,0.00061369,120]
[340745454,1729771833080,-500.0,0.00061369,120]
[340745455,1729771833089,-500.0,0.00061369,120]
[340745456,1729771833099,-500.0,0.00061369,120]
[340745457,1729771833108,-523.25,0.00061369,120]
[340745458,1729771833118,-152.71,0.00061489,120]
[340745459,1729771833128,-1294.82,0.00061643,120]
[340745460,1729771833137,-551.76871275,0.00061643,120]
[340745461,1729771833147,-500.0,0.00061643,120]
[340745462,1729771833156,-500.0,0.00061643,120]
[340745463,1729771833166,-523.25,0.00061643,120]
[340745464,1729771833175,-160.46292137,0.00061722,14]
[340745465,1729771833185,-338.88309182,0.00061818,15]
[340745466,1729771833194,-500.0,0.00061818,2]
[340745467,1729771833203,-1294.82,0.00061917,120]
[340745468,1729771833213,-500.0,0.00061917,120]
[340745469,1729771833222,-500.0,0.00061917,120]
[340745470,1729771833231,-523.25,0.00061917,120]
[340745471,1729771833241,-1294.82,0.00062191,120]
[340745472,1729771833250,-555.79238392,0.00062191,120]
[340745473,1729771833260,-500.0,0.00062191,120]
[340745474,1729771833269,-523.25,0.00062191,120]
[340745475,1729771833278,-10003.3195181,0.00062454,120]
[340745476,1729771833287,-1294.82,0.00062465,120]
[340745477,1729771833297,-500.0,0.00062465,120]
[340745478,1729771833305,-523.25,0.00062465,120]
[340745479,1729771833315,-55555.0,0.00062639,120]
[340745480,1729771833324,-1294.82,0.00062739,120]
[340745481,1729771833334,-500.0,0.00062739,120]
[340745482,1729771833343,-523.25,0.00062739,120]
[340745483,1729771833352,-156.9,0.00062881,2]
[340745484,1729771833361,-156.9,0.00062903,2]
[340745485,1729771833370,-156.9,0.00062926,2]
[340745486,1729771833380,-156.9,0.00062948,2]
[340745487,1729771833389,-156.9,0.0006297,2]
[340745488,1729771833398,-156.9,0.00062993,2]
[340745489,1729771833409,-500.0,0.00063,120]
[340745490,1729771833418,-1294.82,0.00063013,120]
[340745491,1729771833427,-500.0,0.00063013,120]
[340745492,1729771833437,-1000.0,0.00063013,120]
[340745493,1729771833446,-427.6348343,0.00063013,120]
[340745494,1729771833596,-523.25,0.00063013,120]
[340745495,1729771833605,-156.9,0.00063015,2]
[340745496,1729771833614,-156.9,0.00063038,2]
[340745497,1729771833624,-156.9,0.0006306,2]
[340745498,1729771833634,-156.9,0.00063083,2]
[340745499,1729771833644,-156.9,0.00063105,2]
[340745500,1729771833654,-156.9,0.00063128,2]
[340745501,1729771833664,-156.9,0.0006315,2]
[340745502,1729771833673,-156.9,0.00063173,2]
[340745503,1729771833682,-5111.83377067,0.00063194,15]
[340745504,1729771833691,-156.9,0.00063195,2]
[340745505,1729771833700,-1294.82,0.00063287,120]
[340745506,1729771833710,-500.0,0.00063287,120]
[340745507,1729771833719,-523.25,0.00063287,120]
[340745508,1729771833729,-383.04,0.00063323,2]
[340745509,1729771833740,-767.14320133,0.00063561,120]
[340745510,1729771833811,-527.67679867,0.00063561,120]
[340745511,1729771833822,-500.0,0.00063561,120]
[340745512,1729771833831,-523.25,0.00063561,120]
[340745513,1729771833841,-1146.23664973,0.00063835,120]
[340745514,1729771833852,-148.58335027,0.00063835,120]
[340745515,1729771833862,-307.75092978,0.00063835,120]
[340745516,1729771833874,-192.24907022,0.00063835,120]
[340745517,1729771833883,-523.25,0.00063835,120]
[340745518,1729771833893,-78.25092978,0.000639,120]
[340745519,1729771833904,-424.56244922,0.000639,120]
[340745520,1729771833915,-52464.323877,0.00064,120]
[340745521,1729771833927,-500.0,0.00064,120]
[340745522,1729771833937,-1294.82,0.00064109,120]
[340745523,1729771833946,-500.0,0.00064109,120]
[340745524,1729771833955,-523.25,0.00064109,120]
[340745525,1729771833966,-1294.82,0.00064383,120]
[340745526,1729771833975,-500.0,0.00064383,120]
[340745527,1729771833985,-523.25,0.00064383,120]
[340745528,1729771833995,-1294.82,0.00064657,120]
[340745529,1729771834004,-500.0,0.00064657,120]
[340745530,1729771834013,-523.25,0.00064657,120]
[340745531,1729771834023,-1294.82,0.00064931,120]
[340745532,1729771834034,-500.0,0.00064931,120]
[340745533,1729771834043,-523.25,0.00064931,120]
[340745534,1729771834052,-39551.1986303,0.0006499,15]
[340745535,1729771834061,-457.7338184,0.00064999,31]
[340745536,1729771834070,-32279.90122508,0.00065,45]
[340745537,1729771834085,-150.0,0.0006,120]
[340745538,1729771834095,-67720.09877492,0.00065,45]
[340745539,1729771834105,-315.63673288,0.00065018,2]
[340745540,1729771834114,-5111.83377067,0.00065118,15]
[340745541,1729771834124,-7910.23972605,0.00065195,15]
[340745542,1729771834134,-1294.82,0.00065205,120]
[340745543,1729771834143,-500.0,0.00065205,120]
[340745544,1729771834153,-523.25,0.00065205,120]
[340745545,1729771834162,-1294.82,0.00065479,120]
[340745546,1729771834171,-500.0,0.00065479,120]
[340745547,1729771834181,-523.25,0.00065479,120]
[340745548,1729771834190,-500.0,0.000655,120]
[340745549,1729771834199,-383.04,0.00065587,2]
[340745550,1729771834209,-7500.0,0.00065653,120]
[340745551,1729771834218,-203.339009,0.00065653,37]
[340745552,1729771834227,-1294.82,0.00065753,120]
[340745553,1729771834238,-500.0,0.00065753,120]
[340745554,1729771834247,-523.25,0.00065753,120]
[340745555,1729771834256,-7910.23972605,0.00066017,16]
[340745556,1729771834265,-1294.82,0.00066027,120]
[340745557,1729771834274,-216.55,0.00066027,120]
[340745558,1729771834284,-523.25,0.00066027,120]
[340745559,1729771834293,-1294.82,0.00066301,120]
[340745560,1729771834303,-523.25,0.00066301,120]
[340745561,1729771834312,-1294.96051541,0.00066575,120]
[340745562,1729771834322,-523.30745221,0.00066575,120]
[340745563,1729771834334,-152.0,0.00066826,3]
[340745564,1729771834343,-5111.83377067,0.00067043,15]
[340745565,1729771834352,-200.0,0.000677,24]
[340745566,1729771834362,-7910.23972605,0.0006779,16]
[340745567,1729771834371,-6000.0,0.000678,120]
[340745568,1729771834381,-6000.0,0.000678,120]
[340745569,1729771834391,-443.659999,0.000678,120]
[340745570,1729771834400,-500.0,0.000678,24]
[340745571,1729771834410,-383.04,0.00067851,2]
[340745572,1729771834419,-7910.23972605,0.0006788,16]
[340745573,1729771834428,-171.07,0.0006788,120]
[340745574,1729771834437,-197.65969227,0.0006788,7]
[340745575,1729771834447,-55371.6780824,0.0006789,16]
[340745576,1729771834456,-500.0,0.000679,2]
[340745577,1729771834465,-36159.61984169,0.000679,2]
[340745578,1729771834477,-962.78095166,0.000679,2]
[340745579,1729771834490,-13483.28100665,0.000679,2]
[340745580,1729771834499,-163.0133,0.000679,2]
[340745581,1729771834509,-385.0945,0.000679,30]
[340745582,1729771834518,-163.90128877,0.000679,120]
[340745583,1729771834528,-5336.26267848,0.000679,30]
[340745584,1729771834537,-273.68705578,0.000679,49]
[340745585,1729771834546,-150.0,0.000679,40]
[340745586,1729771834555,-150.0,0.000679,120]
[340745587,1729771834564,-171.91475358,0.000679,111]
[340745588,1729771834573,-700.0,0.000679,24]
[340745589,1729771834583,-1276.70734372,0.00067923,16]
[340745592,1729771838005,-150.0,0.0006,120]
[340745593,1729771838015,-250.0,0.0006,120]
[340745594,1729771838024,-505.0065392,0.0006219,120]
[340745595,1729771838034,-418.55730733,0.0006219,120]
[340745596,1729771838047,-81.44269267,0.0006219,120]
[340745597,1729771838057,-361.68823115,0.00064657,120]
[340745598,1729771838070,-140.94657397,0.00064657,120]
[340745599,1729771838081,-959.72468447,0.00067923,16]
[340745600,1729771838094,-2234.28306925,0.00067923,16]
[340745601,1729771838107,-326.45,0.00067923,16]
[340745602,1729771838119,-562.58454539,0.00067923,16]
[340745603,1729771838131,-442.25,0.00067923,16]
[340745604,1729771838144,-826.60961775,0.00067923,16]
[340745605,1729771838156,-515.28705452,0.00067923,16]
[340745606,1729771838167,-766.34341095,0.00067923,16]
[340745607,1729771838178,-341.24596483,0.00067945,60]
[340745608,1729771838192,-551.11403517,0.00067945,60]
[340745609,1729771838203,-757.04,0.00067945,60]
[340745610,1729771838213,-757.04,0.00067945,60]
[340745611,1729771838223,-757.04,0.00067945,60]
[340745612,1729771838232,-500.0,0.00067953,120]
[340745613,1729771838242,-403.1563978,0.00067953,120]
[340745614,1729771838254,-96.8436022,0.00067953,120]
[340745615,1729771838264,-500.0,0.00067953,120]
[340745616,1729771838273,-500.0,0.00067953,120]
[340745617,1729771838282,-520.12783286,0.00067953,120]
[340745618,1729771838292,-150.0,0.00067973,120]
[340745619,1729771838302,-7910.23972605,0.0006798,16]
[340745620,1729771838311,-380.36883889,0.0006798,14]
[340745621,1729771838322,-263.83232538,0.0006798,14]
[340745622,1729771838331,-5912.88954862,0.0006798,16]
[340745623,1729771838342,-469.45,0.0006798,16]
[340745624,1729771838353,-484.43905378,0.0006798,16]
[340745625,1729771838364,-4969.03999999,0.0006798,16]
[340745626,1729771838375,-67266.57865811,0.0006798,16]
[340745627,1729771838384,-2576.80465708,0.0006798,14]
[340745628,1729771838393,-1288.40232854,0.0006799,14]
[340745629,1729771838402,-5153.60931416,0.0006799,14]
[340745630,1729771838411,-258.21030686,0.0006799,30]
[340745631,1729771838421,-50000.0,0.00068,56]
[340745632,1729771838430,-50000.0,0.00068,61]
[340745633,1729771838439,-409364.54946547,0.00068,120]
[340745634,1729771838450,-709.08266212,0.00068,120]
[340745635,1729771838461,-4750.61115174,0.00068,120]
[340745636,1729771838471,-307.07755376,0.00068,120]
[340745637,1729771838482,-33320.51500479,0.00068,120]
[340745638,1729771838494,-4236.72490095,0.00068,120]
[340745639,1729771838505,-1052.1803922,0.00068,120]
[340745640,1729771838516,-4852.6012,0.00068,120]
[340745641,1729771838527,-3872.86848327,0.00068,120]
[340745642,1729771838537,-1876.39587739,0.00068,120]
[340745643,1729771838548,-782.53154917,0.00068,120]
[340745644,1729771838559,-749.86877271,0.00068,120]
[340745645,1729771838570,-5161.27112484,0.00068,120]
[340745646,1729771838581,-24609.1290932,0.00068,120]
[340745647,1729771838591,-300.001004,0.00068,120]
[340745648,1729771838605,-205523.93057782,0.00068,120]
[340745649,1729771838615,-262.62576569,0.00068,60]
[340745650,1729771838627,-12500.0,0.00068,120]
[340745651,1729771838637,-2812.1890775,0.00068001,5]
[340745652,1729771838648,-21211.843605,0.00068001,5]
[340745653,1729771838659,-1859.0,0.00068011,120]
[340745655,1729771838670,-5000.0,0.00068037,120]
[340745656,1729771838680,-1738.1052787,0.00068048,5]
[340745657,1729771838691,-2500.0,0.00068095,120]
[340745658,1729771838701,-150.0,0.00068117,120]
[340745659,1729771838710,-1865.41,0.00068167,120]
[340745660,1729771838720,-150.0,0.00068262,120]
[340745661,1729771838730,-5000.0,0.00068285,120]
[340745662,1729771838740,-25000.0,0.00068344,120]
[340745663,1729771838751,-203.98,0.00068374,120]
[340745664,1729771838762,-1576.42,0.00068383,120]
[340745665,1729771838772,-193.268108,0.000684,40]
[340745666,1729771838782,-150.0,0.00068407,120]
[340745667,1729771838793,-5000.0,0.00068414,120]
[340745668,1729771838803,-5000.0,0.00068443,120]
[340745669,1729771838814,-2667.68,0.00068443,120]
[340745670,1729771838824,-5000.0,0.00068471,120]
[340745671,1729771838834,-16655.11,0.00068474,120]
[340745672,1729771838845,-5000.0,0.00068485,120]
[340745673,1729771838856,-500.0,0.00068492,120]
[340745674,1729771838867,-500.0,0.00068492,120]
[340745675,1729771838877,-500.0,0.00068492,120]
[340745676,1729771838888,-1354.16,0.00068493,120]
[340745677,1729771838898,-1354.16,0.00068493,120]
[340745678,1729771838908,-1354.16,0.00068493,120]
[340745679,1729771838923,-1354.16,0.00068493,120]
[340745680,1729771838935,-1354.16,0.00068493,120]
[340745681,1729771838946,-1354.16,0.00068493,120]
[340745682,1729771838958,-1354.16,0.00068493,120]
[340745683,1729771838967,-1354.16,0.00068493,120]
[340745684,1729771838979,-1354.16,0.00068493,120]
[340745685,1729771838989,-1354.16,0.00068493,120]
[340745686,1729771838999,-1354.16,0.00068493,120]
[340745687,1729771839009,-1354.16,0.00068493,120]
[340745688,1729771839020,-1354.16,0.00068493,120]
[340745689,1729771839030,-1354.16,0.00068493,120]
[340745690,1729771839040,-1354.16,0.00068493,120]
[340745691,1729771839050,-1354.16,0.00068493,120]
[340745692,1729771839060,-1354.16,0.00068493,120]
[340745693,1729771839070,-1354.16,0.00068493,120]
[340745694,1729771839081,-1354.16,0.00068493,120]
[340745695,1729771839091,-1354.16,0.00068493,120]
[340745696,1729771839101,-1354.16,0.00068493,120]
[340745697,1729771839112,-1354.16,0.00068493,120]
[340745698,1729771839122,-1354.16,0.00068493,120]
[340745699,1729771839132,-1354.39990828,0.00068493,120]
[340745700,1729771839143,-3637.55,0.00068493,120]
[340745701,1729771839153,-3637.55,0.00068493,120]
[340745702,1729771839163,-3637.55,0.00068493,120]
[340745703,1729771839173,-3637.55,0.00068493,120]
[340745704,1729771839183,-3637.55,0.00068493,120]
[340745705,1729771839193,-3637.55,0.00068493,120]
[340745706,1729771839203,-3637.55,0.00068493,120]
[340745707,1729771839213,-3637.55,0.00068493,120]
[340745708,1729771839222,-3637.55,0.00068493,120]
[340745709,1729771839232,-3637.55,0.00068493,120]
[340745710,1729771839242,-3637.55,0.00068493,120]
[340745711,1729771839256,-3637.55,0.00068493,120]
[340745712,1729771839267,-3637.55,0.00068493,120]
[340745713,1729771839277,-3637.55,0.00068493,120]
[340745714,1729771839287,-3637.55,0.00068493,120]
[340745715,1729771839298,-3637.55,0.00068493,120]
[340745716,1729771839309,-3637.55,0.00068493,120]
[340745717,1729771839319,-3637.55,0.00068493,120]
[340745718,1729771839330,-3637.55,0.00068493,120]
[340745719,1729771839340,-3637.55,0.00068493,120]
[340745720,1729771839350,-3637.55,0.00068493,120]
[340745721,1729771839360,-3637.55,0.00068493,120]
[340745722,1729771839371,-3637.55,0.00068493,120]
[340745723,1729771839381,-3637.56,0.00068493,120]
[340745724,1729771839392,-4586.75,0.00068493,120]
[340745725,1729771839402,-4586.75,0.00068493,120]
[340745726,1729771839413,-4586.75,0.00068493,120]
[340745727,1729771839424,-4586.75,0.00068493,120]
[340745728,1729771839434,-4586.75,0.00068493,120]
[340745729,1729771839445,-4586.75,0.00068493,120]
[340745730,1729771839455,-4586.75,0.00068493,120]
[340745731,1729771839466,-4586.75,0.00068493,120]
[340745732,1729771839476,-4586.75,0.00068493,120]
[340745733,1729771839487,-4586.75,0.00068493,120]
[340745734,1729771839498,-4586.75,0.00068493,120]
[340745735,1729771839508,-4586.75,0.00068493,120]
[340745736,1729771839517,-4586.75,0.00068493,120]
[340745737,1729771839527,-4586.75,0.00068493,120]
[340745738,1729771839536,-4586.75,0.00068493,120]
[340745739,1729771839546,-4586.75,0.00068493,120]
[340745740,1729771839555,-4586.75,0.00068493,120]
[340745741,1729771839565,-4586.75,0.00068493,120]
[340745742,1729771839576,-4586.75,0.00068493,120]
[340745743,1729771839586,-4586.75,0.00068493,120]
[340745744,1729771839597,-4586.75,0.00068493,120]
[340745745,1729771839608,-4586.75,0.00068493,120]
[340745746,1729771839619,-4586.75,0.00068493,120]
[340745747,1729771839630,-4586.95134001,0.00068493,120]
[340745748,1729771839641,-500.0,0.00068493,120]
[340745749,1729771839651,-500.0,0.00068493,120]
[340745750,1729771839662,-500.0,0.00068493,120]
[340745751,1729771839672,-512.98393978,0.00068493,120]
[340745752,1729771839683,-601.78,0.00068493,120]
[340745753,1729771839694,-601.78,0.00068493,120]
[340745754,1729771839703,-601.78,0.00068493,120]
[340745755,1729771839713,-601.78,0.00068493,120]
[340745756,1729771839722,-601.78,0.00068493,120]
[340745757,1729771839731,-601.78,0.00068493,120]
[340745758,1729771839742,-601.78,0.00068493,120]
[340745759,1729771839753,-601.78,0.00068493,120]
[340745760,1729771839763,-601.78,0.00068493,120]
[340745761,1729771839773,-601.78,0.00068493,120]
[340745762,1729771839783,-601.78,0.00068493,120]
[340745763,1729771839794,-601.78,0.00068493,120]
[340745764,1729771839804,-601.78,0.00068493,120]
[340745765,1729771839815,-601.78,0.00068493,120]
[340745766,1729771839827,-601.78,0.00068493,120]
[340745767,1729771839837,-601.78,0.00068493,120]
[340745768,1729771839847,-601.78,0.00068493,120]
[340745769,1729771839857,-601.78,0.00068493,120]
[340745770,1729771839867,-601.78,0.00068493,120]
[340745771,1729771839877,-601.78,0.00068493,120]
[340745772,1729771839887,-601.78,0.00068493,120]
[340745773,1729771839898,-601.78,0.00068493,120]
[340745774,1729771839909,-601.78,0.00068493,120]
[340745775,1729771839924,-601.8344544,0.00068493,120]
[340745776,1729771839934,-563.59,0.00068493,120]
[340745777,1729771839944,-563.59,0.00068493,120]
[340745779,1729771839954,-563.59,0.00068493,120]
[340745780,1729771839966,-563.59,0.00068493,120]
[340745781,1729771839977,-563.59,0.00068493,120]
[340745782,1729771839987,-563.59,0.00068493,120]
[340745783,1729771839999,-563.59,0.00068493,120]
[340745784,1729771840010,-563.59,0.00068493,120]
[340745785,1729771840020,-563.59,0.00068493,120]
[340745786,1729771840030,-563.59,0.00068493,120]
[340745787,1729771840040,-563.59,0.00068493,120]
[340745788,1729771840052,-563.59,0.00068493,120]
[340745789,1729771840062,-563.59,0.00068493,120]
[340745790,1729771840071,-563.59,0.00068493,120]
[340745791,1729771840081,-563.59,0.00068493,120]
[340745792,1729771840091,-563.59,0.00068493,120]
[340745793,1729771840101,-563.59,0.00068493,120]
[340745794,1729771840111,-563.59,0.00068493,120]
[340745795,1729771840121,-563.59,0.00068493,120]
[340745796,1729771840131,-563.59,0.00068493,120]
[340745797,1729771840141,-563.59,0.00068493,120]
[340745798,1729771840151,-563.59,0.00068493,120]
[340745799,1729771840161,-563.59,0.00068493,120]
[340745800,1729771840171,-563.6401235,0.00068493,120]
[340745801,1729771840181,-500.0,0.00068493,120]
[340745802,1729771840191,-500.0,0.00068493,120]
[340745803,1729771840200,-421.56370316,0.00068493,120]
[340745804,1729771840210,-500.0,0.00068493,120]
[340745805,1729771840220,-551.99239674,0.00068493,120]
[340745806,1729771840230,-500.0,0.00068493,120]
[340745807,1729771840241,-500.0,0.00068493,120]
[340745808,1729771840250,-500.0,0.00068493,120]
[340745809,1729771840260,-500.0,0.00068493,120]
[340745810,1729771840270,-500.0,0.00068493,120]
[340745811,1729771840280,-500.0,0.00068493,120]
[340745812,1729771840290,-500.0,0.00068493,120]
[340745813,1729771840301,-500.0,0.00068493,120]
[340745814,1729771840314,-500.0,0.00068493,120]
[340745815,1729771840325,-500.0,0.00068493,120]
[340745816,1729771840335,-500.0,0.00068493,120]
[340745817,1729771840346,-500.0,0.00068493,120]
[340745818,1729771840356,-500.0,0.00068493,120]
[340745819,1729771840366,-500.0,0.00068493,120]
[340745820,1729771840376,-500.0,0.00068493,120]
[340745821,1729771840387,-500.0,0.00068493,120]
[340745822,1729771840400,-500.0,0.00068493,120]
[340745823,1729771840411,-500.0,0.00068493,120]
[340745824,1729771840421,-500.0,0.00068493,120]
[340745825,1729771840432,-500.0,0.00068493,120]
[340745826,1729771840443,-500.0,0.00068493,120]
[340745827,1729771840454,-500.0,0.00068493,120]
[340745828,1729771840464,-500.0,0.00068493,120]
[340745829,1729771840475,-500.0,0.00068493,120]
[340745830,1729771840486,-500.0,0.00068493,120]
[340745846,1729771840656,-359.66022844,0.00068493,120]
[340745848,1729771840667,-553.08569012,0.00068493,120]
[340745850,1729771840677,-744.2,0.00068493,120]
[340745852,1729771840686,-744.2,0.00068493,120]
[340745854,1729771840696,-744.2,0.00068493,120]
[340745856,1729771840705,-744.2,0.00068493,120]
[340745858,1729771840714,-744.2,0.00068493,120]
[340745860,1729771840723,-744.2,0.00068493,120]
[340745862,1729771840733,-744.2,0.00068493,120]
[340745863,1729771840743,-744.2,0.00068493,120]
[340745865,1729771840752,-744.2,0.00068493,120]
[340745866,1729771840762,-744.2,0.00068493,120]
[340745868,1729771840771,-744.2,0.00068493,120]
[340745870,1729771840781,-744.2,0.00068493,120]
[340745872,1729771840790,-744.2,0.00068493,120]
[340745874,1729771840800,-744.2,0.00068493,120]
[340745876,1729771840810,-744.2,0.00068493,120]
[340745878,1729771840819,-744.2,0.00068493,120]
[340745880,1729771840829,-744.2,0.00068493,120]
[340745882,1729771840838,-744.2,0.00068493,120]
[340745884,1729771840848,-744.2,0.00068493,120]
[340745886,1729771840858,-744.2,0.00068493,120]
[340745888,1729771840868,-744.2,0.00068493,120]
[340745890,1729771840877,-744.2,0.00068493,120]
[340745892,1729771840887,-744.2,0.00068493,120]
[340745894,1729771840897,-744.33803553,0.00068493,120]
[340745896,1729771840907,-500.0,0.00068493,120]
[340745898,1729771840920,-500.0,0.00068493,120]
[340745900,1729771840932,-500.0,0.00068493,120]
[340745902,1729771840941,-500.0,0.00068493,120]
[340745904,1729771840950,-500.0,0.00068493,120]
[340745906,1729771840959,-500.0,0.00068493,120]
[340745907,1729771840970,-500.0,0.00068493,120]
[340745909,1729771840979,-266.75732861,0.00068493,120]
[340745911,1729771840991,-500.0,0.00068493,120]
[340745913,1729771840999,-500.0,0.00068493,120]
[340745915,1729771841008,-500.0,0.00068493,120]
[340745917,1729771841017,-500.0,0.00068493,120]
[340745919,1729771841026,-500.0,0.00068493,120]
[340745921,1729771841036,-500.0,0.00068493,120]
[340745923,1729771841045,-511.66615935,0.00068493,120]
[340745925,1729771841056,-500.0,0.00068493,120]
[340745927,1729771841066,-500.0,0.00068493,120]
[340745929,1729771841077,-500.0,0.00068493,120]
[340745931,1729771841088,-500.0,0.00068493,120]
[340745933,1729771841098,-500.0,0.00068493,120]
[340745935,1729771841108,-500.0,0.00068493,120]
[340745937,1729771841117,-316.74633396,0.00068493,120]